[Event "Prague Open 2025"]
[Site "Prague"]
[Date "2025.01.10"]
[Round "1.11"]
[White "Radzimski, Antoni"]
[Black "Chubar, Vladimir"]
[Result "1-0"]
[Annotator "RC"]
[ECO "C00"]
[WhiteElo "2289"]
[BlackElo "1880"]
[PlyCount "113"]
[EventDate "2025.01.07"]
[EventType "swiss"]
[EventCountry "CZE"]
[SourceTitle "playchess.com"]
[Source "ChessBase"]
[SourceQuality "1"]
[TimeControl "40/5400+30:1800+30"]

1. e4 {[%emt 0:00:04]} e6 {[%emt 0:00:09]} 2. Qe2 {[%emt 0:00:06]} d5 {[%emt 0:00:47]} 3. exd5 {[%emt 0:00:20]} Qxd5 {[%emt 0:00:34]} 4. Nc3 {[%emt 0:00:06]} Qd8 {[%emt 0:00:23]} 5. Nf3 {[%emt 0:03:36]} Nf6 {[%emt 0:00:58]} 6. d3 {[%emt 0:05:06]} Be7 {[%emt 0:07:37]} 7. Bf4 {[%emt 0:05:43]} a6 {[%emt 0:01:43]} 8. g4 {[%emt 0:04:01]} b5 {[%emt 0:02:02]} 9. g5 {[%emt 0:01:40]} Nd5 {[%emt 0:01:36]} 10. Nxd5 {[%emt 0:00:25]} Qxd5 {[%emt 0:00:42]} 11. Bg2 {[%emt 0:00:28]} c6 {[%emt 0:03:15]} 12. h4 {[%emt 0:05:13]} Bb7 {[%emt 0:08:36]} 13. Rg1 {[%emt 0:10:46]} Qf5 {[%emt 0:02:26]} 14. Be5 {[%emt 0:04:23]} Qg6 {[%emt 0:08:11]} 15. Bxb8 {[%emt 0:07:16]} Rxb8 {[%emt 0:02:50]} 16. Ne5 {[%emt 0:00:05]} Qf5 {[%emt 0:01:31]} 17. Be4 {[%emt 0:00:43]} Qxe5 {[%emt 0:15:51]} 18. Bxc6+ {[%emt 0:00:05]} Bxc6 {[%emt 0:00:51]} 19. Qxe5 {[%emt 0:00:03]} O-O {[%emt 0:01:34]} 20. h5 {[%emt 0:00:32]} Rfd8 {[%emt 0:03:32]} 21. Qc7 {[%emt 0:11:32]} Bd7 {[%emt 0:00:44]} 22. O-O-O {[%emt 0:01:07]} Rbc8 {[%emt 0:02:56]} 23. Qf4 {[%emt 0:00:09]} Be8 {[%emt 0:04:31]} 24. g6 {[%emt 0:02:58]} fxg6 {[%emt 0:01:12]} 25. hxg6 {[%emt 0:01:34]} Bxg6 {[%emt 0:02:05]} 26. Rxg6 {[%emt 0:04:07]} hxg6 {[%emt 0:00:11]} 27. Qe4 {[%emt 0:01:29]} Kf7 {[%emt 0:02:39]} 28. Re1 {[%emt 0:01:55]} Rd6 {[%emt 0:01:40]} 29. Qf3+ {[%emt 0:01:05]} Kg8 {[%emt 0:01:08]} 30. Qg4 {[%emt 0:00:47]} Rdc6 {[%emt 0:02:37]} 31. c3 {[%emt 0:01:03]} Kf7 {[%emt 0:01:11]} 32. d4 Bf6 33. d5 {[%emt 0:03:35]} exd5 {[%emt 0:01:54]} 34. Qd7+ {[%emt 0:00:04]} Kf8 {[%emt 0:01:11]} 35. Re8+ {[%emt 0:05:20]} Rxe8 {[%emt 0:00:11]} 36. Qxc6 {[%emt 0:00:03]} b4 {[%emt 0:04:48]} 37. cxb4 {[%emt 0:02:00]} d4 {[%emt 0:00:10]} 38. Qxa6 {[%emt 0:00:26]} Rd8 {[%emt 0:01:32]} 39. Qd3 {[%emt 0:00:30]} Ke7 {[%emt 0:02:41]} 40. a4 {[%emt 0:00:15]} Kd6 {[%emt 0:02:04]} 41. Qxg6 {[%emt 0:31:38]} Kd5 {[%emt 0:31:59]} 42. Qd3 {[%emt 0:00:43]} Rc8+ {[%emt 0:01:09]} 43. Kb1 {[%emt 0:01:01]} Rb8 {[%emt 0:02:14]} 44. b5 {[%emt 0:01:11]} Kc5 {[%emt 0:03:12]} 45. Kc2 {[%emt 0:00:47]} Kb4 {[%emt 0:00:00]} 46. Qb3+ {[%emt 0:00:00]} Ka5 {[%emt 0:00:00]} 47. Qc4 {[%emt 0:00:00]} d3+ {[%emt 0:00:00]} 48. Qxd3 {[%emt 0:00:00]} Rd8 {[%emt 0:00:00]} 49. Qe4 {[%emt 0:00:00]} Rd4 {[%emt 0:00:00]} 50. Qa8+ {[%emt 0:00:00]} Kb4 {[%emt 0:00:00]} 51. b6 {[%emt 0:00:00]} Rf4 {[%emt 0:00:00]} 52. f3 {[%emt 0:00:00]} Rc4+ {[%emt 0:00:00]} 53. Kd3 {[%emt 0:00:00]} Bxb2 {[%emt 0:00:00]} 54. b7 {[%emt 0:00:00]} Rc3+ {[%emt 0:00:00]} 55. Kd2 {[%emt 0:00:00]} Bc1+ {[%emt 0:00:00]} 56. Kd1 {[%emt 0:00:00]} Bf4 {[%emt 0:00:00]} 57. Qf8+ {[%emt 0:00:00]} 1-0

[Event "Prague Open 2025"]
[Site "Prague"]
[Date "2025.01.10"]
[Round "1.12"]
[White "Kisiel, Wiktor"]
[Black "Sokhor, Nazar"]
[Result "0-1"]
[Annotator "RC"]
[ECO "B06"]
[WhiteElo "1871"]
[BlackElo "2265"]
[PlyCount "72"]
[EventDate "2025.01.07"]
[EventType "swiss"]
[EventCountry "CZE"]
[SourceTitle "playchess.com"]
[Source "ChessBase"]
[SourceQuality "1"]
[TimeControl "40/5400+30:1800+30"]

1. e4 {[%emt 0:00:03]} g6 {[%emt 0:00:12]} 2. d4 {[%emt 0:01:07]} Bg7 {[%emt 0:00:07]} 3. Nf3 {[%emt 0:00:55]} c6 {[%emt 0:00:11]} 4. Bd3 {[%emt 0:01:46]} d6 {[%emt 0:00:11]} 5. O-O {[%emt 0:00:15]} Nd7 {[%emt 0:00:18]} 6. c3 {[%emt 0:01:57]} e5 {[%emt 0:00:13]} 7. Nbd2 {[%emt 0:05:33]} Ngf6 {[%emt 0:00:34]} 8. a4 {[%emt 0:02:09]} Qe7 {[%emt 0:00:19]} 9. b3 {[%emt 0:02:59]} O-O {[%emt 0:00:58]} 10. Ba3 {[%emt 0:01:24]} c5 {[%emt 0:01:04]} 11. Re1 {[%emt 0:05:22]} Rd8 {[%emt 0:01:08]} 12. Nc4 {[%emt 0:03:36]} h6 {[%emt 0:03:09]} 13. Qc2 {[%emt 0:06:40]} Nh7 {[%emt 0:03:30]} 14. Ne3 {[%emt 0:07:30]} Ng5 {[%emt 0:00:46]} 15. Nxg5 {[%emt 0:03:33]} Qxg5 {[%emt 0:00:11]} 16. dxc5 {[%emt 0:04:21]} Nxc5 {[%emt 0:00:15]} 17. Bxc5 {[%emt 0:01:29]} dxc5 {[%emt 0:00:06]} 18. Bc4 {[%emt 0:01:57]} Rf8 {[%emt 0:06:48]} 19. Rad1 {[%emt 0:02:09]} Kh8 {[%emt 0:00:11]} 20. Nd5 {[%emt 0:08:41]} Rb8 {[%emt 0:04:58]} 21. Rd3 {[%emt 0:07:25]} b6 {[%emt 0:02:51]} 22. Rg3 {[%emt 0:02:27]} Qh4 {[%emt 0:00:16]} 23. b4 {[%emt 0:03:21]} cxb4 {[%emt 0:01:28]} 24. cxb4 {[%emt 0:00:18]} Bd7 {[%emt 0:01:16]} 25. Qb3 {[%emt 0:06:18]} Rbc8 {[%emt 0:02:22]} 26. Ne3 {[%emt 0:01:32]} Qxe4 {[%emt 0:07:07]} 27. Bxf7 {[%emt 0:07:40]} g5 {[%emt 0:00:19]} 28. Bd5 {[%emt 0:04:04]} Qd4 {[%emt 0:03:22]} 29. Rd1 {[%emt 0:01:46]} Qc3 {[%emt 0:00:51]} 30. Nf1 {[%emt 0:02:06]} Qc2 {[%emt 0:02:50]} 31. Ne3 {[%emt 0:03:08]} Qxf2+ {[%emt 0:00:43]} 32. Kh1 {[%emt 0:00:10]} e4 {[%emt 0:02:05]} 33. Bc4 {[%emt 0:01:46]} Bxa4 {[%emt 0:01:34]} 34. Qxa4 {[%emt 0:00:47]} Rxc4 {[%emt 0:00:07]} 35. Qb5 {[%emt 0:01:13]} Rc3 {[%emt 0:02:14]} 36. Rf1 {[%emt 0:00:18]} Rxe3 {[%emt 0:00:10]} 0-1

[Event "Prague Open 2025"]
[Site "Prague"]
[Date "2025.01.10"]
[Round "1.13"]
[White "Pourquet, Matthieu"]
[Black "Wites, Adam"]
[Result "1-0"]
[Annotator "RC"]
[ECO "A14"]
[WhiteElo "2262"]
[BlackElo "1871"]
[PlyCount "91"]
[EventDate "2025.01.07"]
[EventType "swiss"]
[EventCountry "CZE"]
[SourceTitle "playchess.com"]
[Source "ChessBase"]
[SourceQuality "1"]
[TimeControl "40/5400+30:1800+30"]

1. c4 {[%emt 0:00:05]} Nf6 {[%emt 0:00:13]} 2. g3 {[%emt 0:00:08]} e6 {[%emt 0:00:41]} 3. Bg2 {[%emt 0:00:05]} d5 {[%emt 0:00:41]} 4. Nf3 {[%emt 0:00:07]} Be7 {[%emt 0:02:14]} 5. O-O {[%emt 0:00:11]} O-O {[%emt 0:00:05]} 6. b3 {[%emt 0:00:04]} c6 {[%emt 0:07:14]} 7. Bb2 {[%emt 0:00:35]} Nbd7 {[%emt 0:01:13]} 8. d3 {[%emt 0:02:06]} b6 {[%emt 0:09:51]} 9. e4 {[%emt 0:00:08]} Bb7 {[%emt 0:02:40]} 10. Qe2 {[%emt 0:05:22]} Rc8 {[%emt 0:05:00]} 11. Nc3 {[%emt 0:01:13]} Qc7 {[%emt 0:05:35]} 12. e5 {[%emt 0:08:09]} Ne8 {[%emt 0:03:23]} 13. Rfe1 {[%emt 0:03:50]} g6 {[%emt 0:06:49]} 14. Rac1 {[%emt 0:24:17]} Qb8 {[%emt 0:05:31]} 15. h4 {[%emt 0:12:20]} Ng7 {[%emt 0:04:07]} 16. Bh3 {[%emt 0:00:47]} Rfd8 {[%emt 0:02:56]} 17. Rc2 {[%emt 0:00:43]} a6 {[%emt 0:13:42]} 18. Bc1 {[%emt 0:01:27]} b5 {[%emt 0:03:23]} 19. Bg5 {[%emt 0:08:33]} Bxg5 {[%emt 0:02:12]} 20. hxg5 {[%emt 0:00:15]} Qa7 {[%emt 0:02:52]} 21. cxd5 {[%emt 0:01:35]} cxd5 {[%emt 0:00:26]} 22. d4 {[%emt 0:02:00]} Rc6 {[%emt 0:04:33]} 23. Rec1 {[%emt 0:01:02]} Nb6 {[%emt 0:02:36]} 24. Nd1 {[%emt 0:00:48]} Rdc8 {[%emt 0:00:43]} 25. Ne3 {[%emt 0:01:05]} Nf5 {[%emt 0:03:02]} 26. Bxf5 {[%emt 0:00:57]} gxf5 {[%emt 0:00:01]} 27. Ng2 {[%emt 0:01:53]} Rxc2 {[%emt 0:01:09]} 28. Rxc2 {[%emt 0:00:04]} Qb8 {[%emt 0:00:15]} 29. Nf4 {[%emt 0:00:36]} Rxc2 {[%emt 0:01:04]} 30. Qxc2 {[%emt 0:00:04]} Qc8 {[%emt 0:00:18]} 31. Qd2 {[%emt 0:00:08]} Nd7 {[%emt 0:02:03]} 32. Nh5 {[%emt 0:03:13]} Qc7 {[%emt 0:01:15]} 33. Nf6+ {[%emt 0:00:15]} Kh8 {[%emt 0:01:19]} 34. Qb4 {[%emt 0:00:59]} Nxf6 {[%emt 0:01:03]} 35. gxf6 {[%emt 0:00:08]} Qd8 {[%emt 0:01:59]} 36. Ng5 {[%emt 0:03:30]} Kg8 {[%emt 0:00:34]} 37. Nh3 {[%emt 0:02:10]} h6 {[%emt 0:00:44]} 38. Nf4 {[%emt 0:00:15]} Qc7 {[%emt 0:02:12]} 39. Kg2 {[%emt 0:00:40]} Qc2 {[%emt 0:01:16]} 40. Qe7 {[%emt 0:00:40]} Qc8 {[%emt 0:00:30]} 41. Nd3 {[%emt 0:38:57]} Bc6 {[%emt 0:31:10]} 42. b4 {[%emt 0:00:25]} Qd7 {[%emt 0:00:43]} 43. Qc5 {[%emt 0:01:08]} Ba8 {[%emt 0:00:38]} 44. Qb6 {[%emt 0:00:20]} Bb7 {[%emt 0:01:00]} 45. Nc5 {[%emt 0:00:17]} Qc6 {[%emt 0:00:05]} 46. Qxb7 {[%emt 0:00:07]} 1-0

[Event "Prague Open 2025"]
[Site "Prague"]
[Date "2025.01.10"]
[Round "1.14"]
[White "Migalko, Dmitriy"]
[Black "Chan, Kim Yew"]
[Result "0-1"]
[Annotator "ChessBase"]
[ECO "B11"]
[WhiteElo "1869"]
[BlackElo "2258"]
[PlyCount "60"]
[EventDate "2025.01.07"]
[EventType "swiss"]
[EventCountry "CZE"]
[SourceTitle "playchess.com"]
[Source "ChessBase"]
[SourceQuality "1"]
[TimeControl "40/5400+30:1800+30"]

1. e4 {[%emt 0:00:01]} c6 {[%emt 0:00:01]} 2. Nf3 {[%emt 0:00:14]} d5 {[%emt 0:00:02]} 3. Nc3 {[%emt 0:00:10]} Bg4 {[%emt 0:00:12]} 4. h3 {[%emt 0:00:37]} Bxf3 {[%emt 0:00:12]} 5. Qxf3 {[%emt 0:00:09]} e6 {[%emt 0:00:50]} 6. Be2 {[%emt 0:00:34]} Nd7 {[%emt 0:05:30]} 7. O-O {[%emt 0:02:03]} Ngf6 {[%emt 0:00:30]} 8. d4 {[%emt 0:04:12]} dxe4 {[%emt 0:00:37]} 9. Nxe4 {[%emt 0:00:17]} Nxe4 {[%emt 0:00:49]} 10. Qxe4 {[%emt 0:00:06]} Nf6 {[%emt 0:00:01]} 11. Qd3 {[%emt 0:01:09]} Be7 {[%emt 0:00:02]} 12. c4 {[%emt 0:07:08]} O-O {[%emt 0:00:15]} 13. Be3 {[%emt 0:01:53]} a5 {[%emt 0:04:24]} 14. Rfd1 {[%emt 0:12:43]} a4 {[%emt 0:02:40]} 15. Bf3 {[%emt 0:06:23]} Qa5 {[%emt 0:00:34]} 16. g4 {[%emt 0:07:06]} Rfd8 {[%emt 0:04:08]} 17. Qc2 {[%emt 0:10:40]} a3 {[%emt 0:15:17]} 18. b3 {[%emt 0:02:52]} Bb4 {[%emt 0:00:29]} 19. Rac1 {[%emt 0:02:11]} Rd7 {[%emt 0:00:34]} 20. Kg2 {[%emt 0:11:53]} Rad8 {[%emt 0:00:22]} 21. Rh1 {[%emt 0:02:33]} c5 {[%emt 0:02:49]} 22. dxc5 {[%emt 0:09:21]} Bd2 {[%emt 0:00:18]} 23. Bxd2 {[%emt 0:05:43]} Rxd2 {[%emt 0:00:08]} 24. Qb1 {[%emt 0:01:09]} Rb2 {[%emt 0:01:18]} 25. Qa1 {[%emt 0:00:35]} Qxc5 {[%emt 0:00:01]} 26. Rcf1 {[%emt 0:00:25]} Rdd2 {[%emt 0:00:03]} 27. Qe1 {[%emt 0:00:15]} Rxa2 28. b4 {[%emt 0:02:55]} Qd4 {[%emt 0:01:43]} 29. Kg3 {[%emt 0:01:02]} Rd3 {[%emt 0:01:34]} 30. Qc1 {[%emt 0:01:53]} Ne4+ {[%emt 0:00:33]} 0-1

[Event "Prague Open 2025"]
[Site "Prague"]
[Date "2025.01.10"]
[Round "1.15"]
[White "Tolmacevs, Artjoms"]
[Black "Marsina, Stefan"]
[Result "1-0"]
[Annotator "RC"]
[ECO "C14"]
[WhiteElo "2252"]
[BlackElo "1869"]
[PlyCount "51"]
[EventDate "2025.01.07"]
[EventType "swiss"]
[EventCountry "CZE"]
[SourceTitle "playchess.com"]
[Source "ChessBase"]
[SourceQuality "1"]
[TimeControl "40/5400+30:1800+30"]

1. e4 {[%emt 0:00:01]} e6 {[%emt 0:00:08]} 2. d4 {[%emt 0:00:04]} d5 {[%emt 0:00:02]} 3. Nc3 {[%emt 0:00:10]} Nf6 {[%emt 0:00:06]} 4. Bg5 {[%emt 0:00:09]} Be7 {[%emt 0:00:07]} 5. e5 {[%emt 0:00:06]} Nfd7 {[%emt 0:00:08]} 6. Bxe7 {[%emt 0:00:12]} Qxe7 {[%emt 0:00:04]} 7. f4 {[%emt 0:00:16]} a6 {[%emt 0:00:12]} 8. Qg4 {[%emt 0:01:15]} f5 {[%emt 0:00:44]} 9. Qh5+ {[%emt 0:18:02]} Qf7 {[%emt 0:02:15]} 10. Qh3 {[%emt 0:00:36]} c5 {[%emt 0:00:15]} 11. Nf3 {[%emt 0:05:27]} cxd4 {[%emt 0:04:37]} 12. Ne2 {[%emt 0:08:50]} Nc5 {[%emt 0:08:49]} 13. Ng5 {[%emt 0:03:28]} Qg6 {[%emt 0:00:33]} 14. Nxd4 {[%emt 0:09:15]} O-O {[%emt 0:06:44]} 15. Be2 {[%emt 0:08:33]} Ne4 {[%emt 0:03:52]} 16. Nxe4 {[%emt 0:01:21]} fxe4 {[%emt 0:07:04]} 17. O-O Nc6 {[%emt 0:01:54]} 18. Rad1 {[%emt 0:05:29]} Qe8 {[%emt 0:11:01]} 19. c4 {[%emt 0:03:40]} Bd7 {[%emt 0:06:47]} 20. Bg4 {[%emt 0:06:41]} Nxd4 {[%emt 0:08:33]} 21. Rxd4 {[%emt 0:00:04]} Qe7 {[%emt 0:02:33]} 22. cxd5 {[%emt 0:01:31]} Qc5 {[%emt 0:00:49]} 23. Qe3 {[%emt 0:02:23]} Rad8 {[%emt 0:01:15]} 24. b4 {[%emt 0:03:19]} Qb6 {[%emt 0:00:17]} 25. Qxe4 {[%emt 0:04:19]} Bc8 {[%emt 0:01:27]} 26. d6 {[%emt 0:01:17]} 1-0

[Event "Prague Open 2025"]
[Site "Prague"]
[Date "2025.01.10"]
[Round "1.16"]
[White "Kretschmer, Wolfgang"]
[Black "Jaskolka, Tomasz"]
[Result "0-1"]
[Annotator "RC"]
[ECO "A98"]
[WhiteElo "1980"]
[BlackElo "2210"]
[PlyCount "58"]
[EventDate "2025.01.07"]
[EventType "swiss"]
[EventCountry "CZE"]
[SourceTitle "playchess.com"]
[Source "ChessBase"]
[SourceQuality "1"]
[TimeControl "40/5400+30:1800+30"]

1. d4 {[%emt 0:00:04]} e6 {[%emt 0:00:08]} 2. c4 {[%emt 0:00:11]} f5 {[%emt 0:01:06]} 3. g3 {[%emt 0:01:00]} Nf6 {[%emt 0:00:05]} 4. Bg2 {[%emt 0:02:04]} Be7 {[%emt 0:01:52]} 5. Nf3 {[%emt 0:00:24]} O-O {[%emt 0:00:06]} 6. O-O {[%emt 0:00:32]} d6 {[%emt 0:00:06]} 7. Nc3 {[%emt 0:01:19]} Qe8 {[%emt 0:03:11]} 8. Qc2 {[%emt 0:05:08]} Qg6 {[%emt 0:00:25]} 9. Bf4 {[%emt 0:05:54]} Nh5 {[%emt 0:13:18]} 10. Qd2 {[%emt 0:13:21]} Nxf4 {[%emt 0:06:41]} 11. Qxf4 {[%emt 0:00:56]} Qh5 {[%emt 0:00:08]} 12. Rad1 {[%emt 0:09:39]} g5 {[%emt 0:00:18]} 13. Qe3 {[%emt 0:00:53]} g4 {[%emt 0:07:23]} 14. Ne1 {[%emt 0:01:11]} Bg5 {[%emt 0:04:59]} 15. f4 {[%emt 0:05:52]} gxf3 {[%emt 0:00:16]} 16. Qxf3 {[%emt 0:00:05]} Qh6 {[%emt 0:01:49]} 17. Nd3 {[%emt 0:04:04]} Be3+ {[%emt 0:03:03]} 18. Nf2 {[%emt 0:01:41]} Nc6 {[%emt 0:04:00]} 19. Nb5 {[%emt 0:03:50]} a6 {[%emt 0:06:00]} 20. Nxc7 {[%emt 0:06:04]} Ra7 {[%emt 0:00:17]} 21. Rd3 {[%emt 0:06:25]} Bxd4 {[%emt 0:00:18]} 22. Qf4 {[%emt 0:01:31]} Qxf4 {[%emt 0:00:32]} 23. gxf4 {[%emt 0:00:03]} Bb6 {[%emt 0:00:38]} 24. Nxe6 Bxe6 {[%emt 0:00:06]} 25. Rxd6 {[%emt 0:04:54]} Bxc4 {[%emt 0:00:14]} 26. b3 {[%emt 0:05:42]} Bxe2 {[%emt 0:03:41]} 27. Re1 {[%emt 0:00:39]} Bh5 {[%emt 0:00:22]} 28. Rd7 {[%emt 0:01:11]} Be8 {[%emt 0:00:32]} 29. Bxc6 {[%emt 0:03:09]} bxc6 {[%emt 0:00:27]} 0-1

[Event "Prague Open 2025"]
[Site "Prague"]
[Date "2025.01.10"]
[Round "1.17"]
[White "Mueer, Sebastian"]
[Black "Mungal, Ethan"]
[Result "1-0"]
[Annotator "RC"]
[ECO "D31"]
[WhiteElo "2192"]
[BlackElo "1867"]
[PlyCount "67"]
[EventDate "2025.01.07"]
[EventType "swiss"]
[EventCountry "CZE"]
[SourceTitle "playchess.com"]
[Source "ChessBase"]
[SourceQuality "1"]
[TimeControl "40/5400+30:1800+30"]

1. d4 {[%emt 0:00:04]} d5 {[%emt 0:00:07]} 2. c4 {[%emt 0:00:06]} e6 {[%emt 0:00:08]} 3. Nc3 {[%emt 0:00:09]} a6 {[%emt 0:00:07]} 4. cxd5 {[%emt 0:05:35]} exd5 {[%emt 0:00:12]} 5. Bf4 {[%emt 0:01:38]} Nf6 {[%emt 0:03:39]} 6. e3 {[%emt 0:03:13]} Be6 {[%emt 0:02:26]} 7. Bd3 {[%emt 0:03:17]} Bd6 {[%emt 0:02:18]} 8. Nf3 {[%emt 0:01:45]} O-O {[%emt 0:11:56]} 9. Bg5 {[%emt 0:01:22]} Nbd7 {[%emt 0:03:21]} 10. O-O {[%emt 0:01:52]} c6 {[%emt 0:04:59]} 11. Re1 {[%emt 0:05:32]} h6 {[%emt 0:02:08]} 12. Bf4 {[%emt 0:06:37]} Qc7 {[%emt 0:11:45]} 13. Qd2 {[%emt 0:01:12]} Rfe8 {[%emt 0:03:45]} 14. h3 Nh5 {[%emt 0:29:23]} 15. Bxd6 {[%emt 0:06:53]} Qxd6 {[%emt 0:00:08]} 16. b4 {[%emt 0:06:48]} Nhf6 {[%emt 0:02:03]} 17. Rab1 {[%emt 0:02:33]} Ne4 {[%emt 0:05:38]} 18. Bxe4 {[%emt 0:02:10]} dxe4 {[%emt 0:00:11]} 19. Nxe4 {[%emt 0:00:45]} Qd5 {[%emt 0:01:46]} 20. Nc3 {[%emt 0:01:23]} Qh5 {[%emt 0:00:40]} 21. Ne2 {[%emt 0:03:33]} Qd5 {[%emt 0:06:12]} 22. a4 {[%emt 0:04:49]} Bf5 {[%emt 0:00:33]} 23. Nc3 {[%emt 0:02:09]} Qd6 {[%emt 0:03:37]} 24. e4 {[%emt 0:00:22]} Bh7 {[%emt 0:00:27]} 25. Rb2 {[%emt 0:03:16]} Nb6 {[%emt 0:01:25]} 26. Qd3 {[%emt 0:00:17]} Nd5 {[%emt 0:01:23]} 27. Ne5 {[%emt 0:10:09]} Nxb4 {[%emt 0:01:28]} 28. Qc4 {[%emt 0:00:02]} a5 {[%emt 0:01:45]} 29. Qxf7+ {[%emt 0:00:17]} Kh8 {[%emt 0:00:03]} 30. Qxe8+ Rxe8 {[%emt 0:00:44]} 31. Nf7+ {[%emt 0:00:31]} Kg8 {[%emt 0:00:11]} 32. Nxd6 {[%emt 0:00:08]} Re6 {[%emt 0:00:49]} 33. Nxb7 {[%emt 0:01:12]} Nd3 {[%emt 0:00:18]} 34. Nc5 1-0

[Event "Prague Open 2025"]
[Site "Prague"]
[Date "2025.01.10"]
[Round "1.18"]
[White "Loibl, Johann"]
[Black "Moser, Axel"]
[Result "0-1"]
[Annotator "RC"]
[ECO "B10"]
[WhiteElo "1866"]
[BlackElo "2160"]
[PlyCount "40"]
[EventDate "2025.01.07"]
[EventType "swiss"]
[EventCountry "CZE"]
[SourceTitle "playchess.com"]
[Source "ChessBase"]
[SourceQuality "1"]
[TimeControl "40/5400+30:1800+30"]

1. e4 {[%emt 0:00:04]} c6 {[%emt 0:00:28]} 2. c4 {[%emt 0:00:09]} d5 {[%emt 0:00:12]} 3. exd5 {[%emt 0:00:05]} cxd5 {[%emt 0:00:11]} 4. cxd5 {[%emt 0:00:16]} Nf6 {[%emt 0:00:34]} 5. Bb5+ {[%emt 0:02:00]} Nbd7 {[%emt 0:01:53]} 6. Nc3 {[%emt 0:01:08]} a6 {[%emt 0:02:36]} 7. Qa4 {[%emt 0:04:32]} g6 {[%emt 0:00:50]} 8. Nf3 {[%emt 0:02:07]} Bg7 {[%emt 0:00:12]} 9. O-O {[%emt 0:05:02]} O-O {[%emt 0:00:16]} 10. Be2 {[%emt 0:02:55]} b5 {[%emt 0:01:43]} 11. Qh4 {[%emt 0:04:55]} Nb6 {[%emt 0:03:08]} 12. a4 {[%emt 0:06:33]} bxa4 {[%emt 0:07:59]} 13. Nxa4 {[%emt 0:00:48]} Nbxd5 {[%emt 0:05:33]} 14. Nc3 {[%emt 0:02:44]} Bb7 {[%emt 0:02:14]} 15. d4 {[%emt 0:06:37]} Qd6 {[%emt 0:08:28]} 16. Bh6 {[%emt 0:16:02]} Bxh6 {[%emt 0:03:06]} 17. Qxh6 {[%emt 0:00:08]} Nf4 {[%emt 0:00:26]} 18. Nh4 {[%emt 0:16:33]} Nxe2+ {[%emt 0:04:44]} 19. Nxe2 {[%emt 0:00:04]} Ng4 {[%emt 0:00:25]} 20. Qf4 {[%emt 0:01:05]} Qxf4 0-1

[Event "Prague Open 2025"]
[Site "Prague"]
[Date "2025.01.10"]
[Round "1.19"]
[White "Mannion, Stephen R"]
[Black "Kopacki, Aleksander"]
[Result "1-0"]
[Annotator "RC"]
[ECO "B63"]
[WhiteElo "2159"]
[BlackElo "1862"]
[PlyCount "77"]
[EventDate "2025.01.07"]
[EventType "swiss"]
[EventCountry "CZE"]
[SourceTitle "playchess.com"]
[Source "ChessBase"]
[SourceQuality "1"]
[TimeControl "40/5400+30:1800+30"]

1. e4 {[%emt 0:00:02]} c5 {[%emt 0:00:05]} 2. Nf3 {[%emt 0:00:04]} d6 {[%emt 0:00:07]} 3. d4 {[%emt 0:00:06]} cxd4 {[%emt 0:00:05]} 4. Nxd4 {[%emt 0:00:05]} Nf6 {[%emt 0:00:08]} 5. Nc3 {[%emt 0:00:05]} Nc6 {[%emt 0:00:10]} 6. Bg5 {[%emt 0:00:06]} e6 {[%emt 0:00:23]} 7. Qd2 {[%emt 0:00:14]} Be7 {[%emt 0:00:36]} 8. O-O-O {[%emt 0:00:39]} a6 {[%emt 0:01:25]} 9. f3 {[%emt 0:11:57]} Qc7 {[%emt 0:08:25]} 10. Kb1 {[%emt 0:02:04]} Bd7 {[%emt 0:05:16]} 11. Nxc6 {[%emt 0:04:14]} Bxc6 {[%emt 0:22:21]} 12. h4 {[%emt 0:02:33]} b5 {[%emt 0:12:16]} 13. Ne2 {[%emt 0:04:38]} Rd8 14. Nd4 {[%emt 0:03:01]} Bd7 {[%emt 0:22:22]} 15. g4 {[%emt 0:27:13]} h5 {[%emt 0:18:06]} 16. gxh5 {[%emt 0:02:07]} Rxh5 {[%emt 0:00:09]} 17. Bd3 {[%emt 0:02:45]} Ng8 {[%emt 0:04:22]} 18. c3 {[%emt 0:15:20]} Qc5 {[%emt 0:02:12]} 19. Rhg1 {[%emt 0:08:22]} g6 {[%emt 0:00:55]} 20. Bc2 {[%emt 0:01:53]} Bc8 {[%emt 0:00:35]} 21. a4 {[%emt 0:01:21]} Bd7 {[%emt 0:00:26]} 22. axb5 {[%emt 0:03:11]} axb5 {[%emt 0:00:09]} 23. Nb3 {[%emt 0:01:10]} Qc7 {[%emt 0:00:21]} 24. f4 {[%emt 0:02:16]} Ra8 {[%emt 0:00:59]} 25. f5 {[%emt 0:01:15]} Bxg5 {[%emt 0:00:34]} 26. hxg5 {[%emt 0:00:23]} gxf5 {[%emt 0:00:30]} 27. exf5 {[%emt 0:01:00]} Ne7 {[%emt 0:00:31]} 28. g6 {[%emt 0:02:36]} exf5 {[%emt 0:00:31]} 29. g7 {[%emt 0:00:53]} Ng8 {[%emt 0:00:26]} 30. Qe2+ {[%emt 0:00:24]} Be6 {[%emt 0:00:03]} 31. Qxh5 {[%emt 0:00:13]} Qa7 {[%emt 0:00:08]} 32. Rge1 {[%emt 0:00:34]} Kd7 {[%emt 0:00:45]} 33. Rxe6 {[%emt 0:01:00]} fxe6 {[%emt 0:00:20]} 34. Qf7+ {[%emt 0:00:22]} Ne7 {[%emt 0:00:01]} 35. Re1 {[%emt 0:00:16]} e5 {[%emt 0:01:44]} 36. Bxf5+ {[%emt 0:00:41]} Kc6 {[%emt 0:00:01]} 37. Be4+ {[%emt 0:00:19]} d5 {[%emt 0:00:07]} 38. Qe6+ {[%emt 0:00:10]} Kc7 {[%emt 0:00:16]} 39. Qxe7+ {[%emt 0:00:17]} 1-0